bitfinex-derivatives/quotes_BNBF0:USTF0_20250316
["timestamp","ask_amount","ask_price","bid_price","bid_amount"]
[1742161540871,0.27443381,604.36,603.16,0.91658697]
[1742161541172,0.27443381,604.4,603.16,0.91658697]
[1742161541373,0.27443381,604.39,603.16,0.91658697]
[1742161542066,0.27443381,604.4,603.16,0.91658697]
[1742161542369,0.27443381,604.39,603.16,0.91658697]
[1742161542566,0.27443381,604.4,603.16,0.91658697]
[1742161544368,0.3309012,604.41,603.16,0.91658697]
[1742161544673,0.27443227,604.4,603.16,0.91658697]
[1742161546173,0.27446727,604.39,603.16,0.91658697]
[1742161546373,0.27446727,604.38,603.16,0.91658697]
[1742161546573,0.27446727,604.4,603.16,0.91658697]
[1742161546773,0.27446727,604.39,603.16,0.91658697]
[1742161546973,0.27446727,604.4,603.16,0.91658697]
[1742161547175,0.27446727,604.39,603.16,0.91658697]
[1742161547369,0.27446727,604.4,603.16,0.91658697]
[1742161547573,0.27446727,604.39,603.16,0.91658697]
[1742161547774,0.3309012,604.41,603.16,0.91658697]
[1742161547975,0.27446464,604.4,603.16,0.91658697]
[1742161551685,0.3309012,604.41,603.16,0.91658697]
[1742161551885,0.27446503,604.4,603.16,0.91658697]
[1742161555287,0.27446489,604.39,603.16,0.91658697]
[1742161555486,0.27446489,604.4,603.16,0.91658697]
[1742161555787,0.3309012,604.41,603.16,0.91658697]
[1742161555788,0.27446489,604.39,603.16,0.91658697]
[1742161555982,0.27446489,604.4,603.16,0.91658697]
[1742161556181,0.27446489,604.39,603.16,0.91658697]
[1742161556385,0.27446489,604.4,603.16,0.91658697]
[1742161556585,0.27446489,604.39,603.16,0.91658697]
[1742161556786,0.27446489,604.4,603.16,0.91658697]
[1742161556986,0.27446489,604.39,603.16,0.91658697]
[1742161557187,0.3309012,604.41,603.16,0.91658697]
[1742161557188,0.27446489,604.4,603.16,0.91658697]
[1742161557486,0.27446489,604.39,603.16,0.91658697]
[1742161557685,0.27446489,604.38,603.16,0.91658697]
[1742161557882,0.27446489,604.4,603.16,0.91658697]
[1742161558087,0.27446489,604.39,603.16,0.91658697]
[1742161558383,0.27446489,604.38,603.16,0.91658697]
[1742161558590,0.3309012,604.41,603.16,0.91658697]
[1742161558789,0.27444702,604.4,603.16,0.91658697]
[1742161560389,1.79859094,604.4,603.16,0.91658697]
[1742161560590,1.52414392,604.4,603.16,0.91658697]
[1742161560790,0.27444801,604.39,603.16,0.91658697]
[1742161561190,3.9130857,604.39,603.16,0.91658697]
[1742161561388,0.27444801,604.38,603.16,0.91658697]
[1742161561593,0.27444801,604.39,603.16,0.91658697]
[1742161561797,2.51575315,604.37,603.16,0.91658697]
[1742161561990,0.27443886,604.36,603.16,0.91658697]
[1742161563995,0.27443886,604.35,603.16,0.91658697]
[1742161564194,0.3309012,604.41,603.16,0.91658697]
[1742161564195,0.27443886,604.4,603.16,0.91658697]
[1742161567193,0.27443757,604.39,603.16,0.91658697]
[1742161567392,0.27443757,604.4,603.16,0.91658697]
[1742161569097,0.3309012,604.41,603.16,0.91658697]
[1742161569399,0.27444059,604.4,603.16,0.91658697]
[1742161572798,0.27444181,604.39,603.16,0.91658697]
[1742161573003,0.27444181,604.38,603.16,0.91658697]
[1742161573200,0.27444181,604.37,603.16,0.91658697]
[1742161573404,3.91298808,604.39,603.16,0.91658697]
[1742161573602,0.27444181,604.38,603.16,0.91658697]
[1742161574505,0.27444182,604.37,603.16,0.91658697]
[1742161574805,0.27444182,604.36,603.16,0.91658697]
[1742161575003,3.91298809,604.37,603.16,0.91658697]
[1742161575306,0.27444182,604.36,603.16,0.91658697]
[1742161576102,3.15846659,604.36,603.16,0.91658697]
[1742161576306,3.91298809,604.35,603.16,0.91658697]
[1742161576505,0.27444182,604.34,603.16,0.91658697]
[1742161577707,3.15846659,604.34,603.16,0.91658697]
[1742161577910,3.91298809,604.33,603.16,0.91658697]
[1742161578208,0.27444182,604.32,603.16,0.91658697]
[1742161579008,3.15846659,604.32,603.16,0.91658697]
[1742161579209,3.91298809,604.31,603.16,0.91658697]
[1742161579410,0.27444182,604.3,603.16,0.91658697]
[1742161579605,0.27444182,604.31,603.16,0.91658697]
[1742161580107,2.88402477,604.32,603.16,0.91658697]
[1742161580306,3.9131382,604.31,603.16,0.91658697]
[1742161580507,0.27444232,604.3,603.16,0.91658697]
[1742161581007,0.27444232,604.29,603.16,0.91658697]
[1742161581209,0.27444232,604.34,603.16,0.91658697]
[1742161581409,0.27444232,604.33,603.16,0.91658697]
[1742161581606,0.27444232,604.32,603.16,0.91658697]
[1742161581805,0.27444232,604.34,603.16,0.91658697]
[1742161582008,0.27444232,604.33,603.16,0.91658697]
[1742161582412,3.91310622,604.33,603.16,0.91658697]
[1742161582611,0.27444232,604.32,603.16,0.91658697]
[1742161583514,2.88402477,604.32,603.16,0.91658697]
[1742161583713,0.27444258,604.31,603.16,0.91658697]
[1742161585313,2.88402477,604.38,603.16,0.91658697]
[1742161585614,3.91314525,604.37,603.16,0.91658697]
[1742161585915,0.27444152,604.36,603.16,0.91658697]
[1742161587641,3.15846629,604.36,603.16,0.91658697]
[1742161587814,0.27444152,604.35,603.16,0.91658697]
[1742161589307,3.91317017,604.35,603.16,0.91658697]
[1742161589614,3.15846629,604.34,603.16,0.91658697]
[1742161589808,3.63872865,604.33,603.16,0.91658697]
[1742161590013,0.27444152,604.32,603.16,0.91658697]
[1742161590416,0.27444152,604.33,603.16,0.91658697]
[1742161590715,0.27444152,604.32,603.16,0.91658697]
[1742161590914,0.27444152,604.33,603.16,0.91658697]
[1742161591212,0.27444673,604.32,603.16,0.91658697]
[1742161591414,0.27444673,604.33,603.16,0.91658697]
[1742161591715,0.27444673,604.32,603.16,0.91658697]
[1742161591907,0.27444673,604.4,603.16,0.91658697]
[1742161592110,0.27444673,604.39,603.16,0.91658697]
[1742161592307,0.27444673,604.4,603.16,0.91658697]
[1742161592509,0.27444673,604.39,603.16,0.91658697]
[1742161592712,0.27444673,604.4,603.16,0.91658697]
[1742161594411,0.3309012,604.41,603.16,0.91658697]
[1742161594616,0.27443982,604.4,603.16,0.91658697]
[1742161596618,0.27443975,604.39,603.16,0.91658697]
[1742161596819,0.27443975,604.38,603.16,0.91658697]
[1742161597018,0.27443975,604.37,603.16,0.91658697]
[1742161597219,0.3309012,604.41,603.16,0.91658697]
[1742161598015,0.27444004,604.4,603.16,0.91658697]
[1742161598616,0.3309012,604.41,603.16,0.91658697]
[1742161598814,0.27443956,604.4,603.16,0.91658697]
[1742161607723,0.3309012,604.41,603.16,0.91658697]
[1742161607923,0.27443981,604.4,603.16,0.91658697]
[1742161611924,0.3309012,604.41,603.16,0.91658697]
[1742161612225,0.27442619,604.4,603.16,0.91658697]
[1742161613321,0.3309012,604.41,603.16,0.91658697]
[1742161613527,0.27442903,604.4,603.16,0.91658697]
[1742161622327,0.27445428,604.39,603.16,0.91658697]
[1742161622632,0.27445428,604.4,603.16,0.91658697]
[1742161622826,0.27445428,604.39,603.16,0.91658697]
[1742161623029,0.3309012,604.41,603.16,0.91658697]
[1742161623229,0.27445136,604.4,603.16,0.91658697]
[1742161625232,0.27445136,604.39,603.16,0.91658697]
[1742161625426,0.3309012,604.41,603.16,0.91658697]
[1742161625427,0.27445136,604.38,603.16,0.91658697]
[1742161625632,0.27445136,604.37,603.16,0.91658697]
[1742161625826,0.27445136,604.36,603.16,0.91658697]
[1742161626029,0.27445236,604.35,603.16,0.91658697]
[1742161626229,0.27445236,604.34,603.16,0.91658697]
[1742161626428,0.27445236,604.4,603.16,0.91658697]
[1742161626631,0.27445236,604.39,603.16,0.91658697]
[1742161626831,0.27445236,604.38,603.16,0.91658697]
[1742161627033,2.51575315,604.29,603.16,0.91658697]
[1742161627225,3.91429469,604.28,603.16,0.91658697]
[1742161627430,0.27445236,604.27,603.16,0.91658697]
[1742161628034,3.15959725,604.27,603.16,0.91658697]
[1742161628333,3.91429469,604.26,603.16,0.91658697]
[1742161628531,3.63984233,604.26,603.16,0.91658697]
[1742161628728,0.27445399,604.25,603.16,0.91658697]
[1742161629535,3.63984233,604.26,603.16,0.91658697]
[1742161629838,0.27445401,604.25,603.16,0.91658697]
[1742161630031,3.1595989,604.25,603.16,0.91658697]
[1742161630234,3.91429634,604.24,603.16,0.91658697]
[1742161630435,0.27445401,604.23,603.16,0.91658697]
[1742161632234,3.1595989,604.23,603.16,0.91658697]
[1742161632434,3.91429634,604.22,603.16,0.91658697]
[1742161632637,0.27445401,604.21,603.16,0.91658697]
[1742161633438,0.27445292,604.2,603.16,0.91658697]
[1742161633634,0.27445292,604.21,603.16,0.91658697]
[1742161633834,0.27445292,604.2,603.16,0.91658697]
[1742161635241,0.27445292,604.27,603.16,0.91658697]
[1742161635545,0.27445292,604.26,603.16,0.91658697]
[1742161635840,0.27445292,604.25,603.16,0.91658697]
[1742161636041,0.27445292,604.27,603.16,0.91658697]
[1742161636237,0.27445292,604.26,603.16,0.91658697]
[1742161636538,0.27445292,604.25,603.16,0.91658697]
[1742161636741,0.27445292,604.27,603.16,0.91658697]
[1742161636941,0.27445087,604.26,603.16,0.91658697]
[1742161637144,0.27445087,604.27,603.16,0.91658697]
[1742161637545,2.88514489,604.28,603.16,0.91658697]
[1742161637743,0.27445087,604.27,603.16,0.91658697]
[1742161638142,3.91451123,604.27,603.16,0.91658697]
[1742161638338,0.27445087,604.26,603.16,0.91658697]
[1742161639143,3.15959576,604.26,603.16,0.91658697]
[1742161639340,0.27445087,604.25,603.16,0.91658697]
[1742161640052,3.91435898,604.25,603.16,0.91658697]
[1742161640252,0.27445087,604.24,603.16,0.91658697]
[1742161640648,3.15959576,604.24,603.16,0.91658697]
[1742161640855,0.27446575,604.23,603.16,0.91658697]
[1742161642550,0.3309012,604.41,603.16,0.91658697]
[1742161642551,2.88514489,604.31,603.16,0.91658697]
[1742161642755,0.27445717,604.3,603.16,0.91658697]
[1742161644756,0.27445717,604.29,603.16,0.91658697]
[1742161644958,0.27445717,604.4,603.16,0.91658697]
[1742161645155,0.60536932,604.39,603.16,0.91658697]
[1742161645357,3.63957004,604.43,603.16,0.91658697]
[1742161645358,0.6053748,604.38,603.16,0.91658697]
[1742161645562,0.27445717,604.37,603.16,0.91658697]
[1742161646462,0.27445659,604.36,603.16,0.91658697]
[1742161646667,0.27445659,604.35,603.16,0.91658697]
[1742161646863,0.27445659,604.37,603.16,0.91658697]
[1742161647061,0.27445659,604.36,603.16,0.91658697]
[1742161647261,0.27445659,604.37,603.16,0.91658697]
[1742161647460,0.33091763,604.38,603.16,0.91658697]
[1742161647461,0.27445659,604.36,603.16,0.91658697]
[1742161647663,0.27445659,604.37,603.16,0.91658697]
[1742161647862,0.27445659,604.36,603.16,0.91658697]
[1742161648163,0.27445659,604.37,603.16,0.91658697]
[1742161648363,0.27445659,604.36,603.16,0.91658697]
[1742161648564,0.27445659,604.37,603.16,0.91658697]
[1742161648764,0.27445659,604.36,603.16,0.91658697]
[1742161648963,0.27445659,604.37,603.16,0.91658697]
[1742161649163,0.27445659,604.36,603.16,0.91658697]
[1742161649561,3.91402663,604.36,603.16,0.91658697]
[1742161649765,0.27445659,604.35,603.16,0.91658697]
[1742161649961,3.63957004,604.36,603.16,0.91658697]
[1742161650165,0.27445663,604.35,603.16,0.91658697]
[1742161650866,4.68412833,604.35,603.16,0.91658697]
[1742161651161,5.43855348,604.34,603.16,0.91658697]
[1742161651365,0.27445663,604.33,603.16,0.91658697]
[1742161651861,0.27445617,604.32,603.16,0.91658697]
[1742161652061,0.27445617,604.33,603.16,0.91658697]
[1742161652660,3.15960106,604.33,603.16,0.91658697]
[1742161652865,3.91402621,604.32,603.16,0.91658697]
[1742161653065,0.27445617,604.31,603.16,0.91658697]
[1742161653467,2.51575315,604.27,603.16,0.91658697]
[1742161653667,3.63957004,604.26,603.16,0.91658697]
[1742161653869,0.27445617,604.25,603.16,0.91658697]
[1742161654763,3.15960106,604.25,603.16,0.91658697]
[1742161654969,0.27445617,604.24,603.16,0.91658697]
[1742161655565,2.88514489,604.25,603.16,0.91658697]
[1742161655761,0.27445775,604.24,603.16,0.91658697]
[1742161656968,0.27445775,604.23,603.16,0.91658697]
[1742161657166,0.27445775,604.25,603.16,0.91658697]
[1742161657365,0.27445775,604.24,603.16,0.91658697]
[1742161657562,2.88514489,604.26,603.16,0.91658697]
[1742161657563,0.27445775,604.25,603.16,0.91658697]
[1742161658769,3.91400493,604.3,603.16,0.91658697]
[1742161659073,0.27445775,604.29,603.16,0.91658697]
[1742161659469,0.27445775,604.29,603.16,0.33158697]
[1742161659870,3.15960264,604.29,603.16,0.33158697]
[1742161660067,3.91400493,604.28,603.16,0.33158697]
[1742161660267,0.27445775,604.27,603.16,0.33158697]
[1742161661173,0.27446935,604.26,603.16,0.33158697]
[1742161661473,0.27446935,604.25,603.16,0.33158697]
[1742161661673,3.91401653,604.26,603.16,0.33158697]
[1742161661868,0.27446935,604.25,603.16,0.33158697]
[1742161662471,0.27446935,604.25,603.16,0.92058697]
[1742161662669,3.15961424,604.25,603.16,0.92058697]
[1742161662871,3.91401653,604.24,603.16,0.92058697]
[1742161663069,0.27446935,604.24,603.16,0.92058697]
[1742161663280,0.27446935,604.23,603.16,0.92058697]
[1742161663777,0.27446935,604.22,603.16,0.92058697]
[1742161664074,0.27446935,604.21,603.16,0.92058697]
[1742161664468,0.27446935,604.2,603.16,0.92058697]
[1742161664672,2.88514489,604.29,603.16,0.92058697]
[1742161664874,0.27446947,604.28,603.16,0.92058697]
[1742161666576,2.88514489,604.29,603.16,0.92058697]
[1742161666778,0.27448162,604.28,603.16,0.92058697]
[1742161668378,0.27447397,604.27,603.16,0.92058697]
[1742161668578,0.27447397,604.26,603.16,0.92058697]
[1742161668879,0.27447397,604.25,603.16,0.92058697]
[1742161669080,0.27447397,604.37,603.16,0.92058697]
[1742161669280,0.27447397,604.36,603.16,0.92058697]
[1742161669480,0.27447397,604.37,603.16,0.92058697]
[1742161669673,0.27447397,604.36,603.16,0.92058697]
[1742161669877,0.27447397,604.35,603.16,0.92058697]
[1742161670078,0.33091763,604.38,603.16,0.92058697]
[1742161670380,0.27447407,604.37,603.16,0.92058697]
[1742161672184,0.33091763,604.38,603.16,0.92058697]
[1742161672675,0.27447432,604.37,603.16,0.92058697]
[1742161674383,0.27447199,604.36,603.16,0.92058697]
[1742161674584,0.27447199,604.35,603.16,0.92058697]
[1742161674884,0.27447199,604.34,603.16,0.92058697]
[1742161675080,0.27447199,604.33,603.16,0.92058697]
[1742161675283,0.27447199,604.37,603.16,0.92058697]
[1742161675585,0.27447199,604.36,603.16,0.92058697]
[1742161675782,0.27447199,604.35,603.16,0.92058697]
[1742161675977,0.33091763,604.38,603.16,0.92058697]
[1742161675978,0.27447199,604.37,603.16,0.92058697]
[1742161676179,0.27447116,604.36,603.16,0.92058697]
[1742161676383,0.27447116,604.37,603.16,0.92058697]
[1742161676581,0.27447116,604.36,603.16,0.92058697]
[1742161676780,0.27447116,604.37,603.16,0.92058697]
[1742161677786,0.33091763,604.38,603.16,0.92058697]
[1742161677983,0.27447106,604.37,603.16,0.92058697]
[1742161681697,3.91481649,604.37,603.16,0.92058697]
[1742161681900,0.27447106,604.36,603.16,0.92058697]
[1742161682996,0.27447075,604.35,603.16,0.92058697]
[1742161683198,1.79939218,604.36,603.16,0.92058697]
[1742161683398,0.27447075,604.35,603.16,0.92058697]
[1742161684301,3.91481618,604.35,603.16,0.92058697]
[1742161684601,0.27447075,604.34,603.16,0.92058697]
[1742161685896,3.15961564,604.34,603.16,0.92058697]
[1742161686096,3.91481618,604.33,603.16,0.92058697]
[1742161686296,2.51575315,604.31,603.16,0.92058697]
[1742161686496,5.43976195,604.3,603.16,0.92058697]
[1742161686700,0.27447075,604.29,603.16,0.92058697]
[1742161687094,3.64034543,604.3,603.16,0.92058697]
[1742161687296,0.27447064,604.29,603.16,0.92058697]
[1742161688203,3.15961553,604.29,603.16,0.92058697]
[1742161688504,2.51575315,604.23,603.16,0.92058697]
[1742161688706,0.2744789,604.22,603.16,0.92058697]
[1742161690304,2.51575315,604.23,603.16,0.92058697]
[1742161690503,0.27448658,604.22,603.16,0.92058697]
[1742161690698,0.27448658,604.37,603.16,0.92058697]
[1742161690901,0.27448658,604.36,603.16,0.92058697]
[1742161691101,0.27448658,604.37,603.16,0.92058697]
[1742161691303,0.27448658,604.36,603.16,0.92058697]
[1742161691507,0.27448658,604.37,603.16,0.92058697]
[1742161691699,0.27448658,604.36,603.16,0.92058697]
[1742161691901,0.27448658,604.35,603.16,0.92058697]
[1742161692100,0.27447896,604.34,603.16,0.92058697]
[1742161692302,0.27447896,604.33,603.16,0.92058697]
[1742161692503,0.27447896,604.32,603.16,0.92058697]
[1742161692705,0.27447896,604.31,603.16,0.92058697]
[1742161692907,0.27447896,604.37,603.16,0.92058697]
[1742161693104,0.33091763,604.38,603.16,0.92058697]
[1742161693105,0.27447896,604.36,603.16,0.92058697]
[1742161693302,0.27447896,604.35,603.16,0.92058697]
[1742161693508,0.27447896,604.34,603.16,0.92058697]
[1742161693901,0.27447896,604.33,603.16,0.92058697]
[1742161694106,0.27447896,604.37,603.16,0.92058697]
[1742161694307,0.27447896,604.36,603.16,0.92058697]
[1742161694503,0.27447896,604.37,603.16,0.92058697]
[1742161694705,0.27447896,604.36,603.16,0.92058697]
[1742161694906,0.27447896,604.35,603.16,0.92058697]
[1742161695107,0.27447896,604.37,603.16,0.92058697]
[1742161695412,0.27447896,604.36,603.16,0.92058697]
[1742161695612,0.27448598,604.35,603.16,0.92058697]
[1742161695910,0.27448598,604.34,603.16,0.92058697]
[1742161696105,0.27448598,604.37,603.16,0.92058697]
[1742161697306,0.33092858,604.36,603.16,0.92058697]
[1742161697905,0.27448598,604.35,603.16,0.92058697]
[1742161698109,0.33093953,604.34,603.16,0.92058697]
[1742161698306,0.27448598,604.33,603.16,0.92058697]
[1742161698505,0.33095048,604.32,603.16,0.92058697]
[1742161698710,0.27448598,604.31,603.16,0.92058697]
[1742161699210,0.33096144,604.3,603.16,0.92058697]
[1742161699711,0.27448598,604.29,603.16,0.92058697]
[1742161699914,0.33097239,604.28,603.16,0.92058697]
[1742161700107,0.27448598,604.27,603.16,0.92058697]
[1742161701110,0.33098335,604.26,603.16,0.92058697]
[1742161701310,0.27448598,604.25,603.16,0.92058697]
[1742161701611,0.3309943,604.24,603.16,0.92058697]
[1742161701810,0.27448598,604.23,603.16,0.92058697]
[1742161702009,0.33100526,604.22,603.16,0.92058697]
[1742161702313,0.27448598,604.21,603.16,0.92058697]
[1742161702507,0.33101621,604.2,603.16,0.92058697]
[1742161702710,0.27448598,604.19,603.16,0.92058697]
[1742161702908,0.60550767,604.19,603.16,0.92058697]
[1742161703109,0.27448598,604.18,603.16,0.92058697]
[1742161703716,0.33103265,604.17,603.16,0.589]
[1742161703909,0.27448598,604.16,603.16,0.589]
[1742161704109,0.33104361,604.15,603.16,0.589]
[1742161704309,0.27448598,604.14,603.16,0.589]
[1742161705221,0.33105457,604.13,603.16,0.589]
[1742161705412,0.27448598,604.12,603.16,0.589]
[1742161705608,0.33106553,604.11,603.16,0.589]
[1742161705812,0.27448598,604.1,603.16,0.589]
[1742161706116,0.33107649,604.09,603.16,0.589]
[1742161706318,0.27448598,604.08,603.16,0.589]
[1742161708317,0.33108745,604.07,603.16,0.589]
[1742161708514,0.60569351,604.07,603.16,0.589]
[1742161708721,0.27460606,604.06,603.16,0.589]
[1742161708915,0.33109841,604.05,603.16,0.589]
[1742161709110,0.27460606,604.04,603.16,0.589]
[1742161709319,0.33110938,604.03,603.16,0.589]
[1742161709617,0.27460606,604.02,603.16,0.589]
[1742161709824,0.33112034,604.01,603.16,0.589]
[1742161710026,0.27460606,604.0,603.16,0.589]
[1742161710221,0.33113131,603.99,603.16,0.589]
[1742161710723,0.27465636,603.98,603.16,0.589]
[1742161710923,0.33114227,603.97,603.16,0.589]
[1742161711119,0.27465636,603.96,603.16,0.589]
[1742161711317,0.60580411,603.96,603.16,0.589]
[1742161711517,0.27465636,603.95,603.16,0.589]
[1742161712123,0.33114775,603.96,603.16,0.589]
[1742161712322,0.27466205,603.95,603.16,0.589]
[1742161712718,0.33115872,603.94,603.16,0.589]
[1742161712918,0.27466205,603.93,603.16,0.589]
[1742161713125,0.33116969,603.92,603.16,0.589]
[1742161713521,0.27466205,603.91,603.16,0.589]
[1742161713720,0.33118065,603.9,603.16,0.589]
[1742161713925,0.27466205,603.89,603.16,0.589]
[1742161714118,0.33119162,603.88,603.16,0.589]
[1742161714321,0.27466205,603.87,603.16,0.589]
[1742161714918,0.33119162,603.88,603.16,0.589]
[1742161715118,0.27467541,603.87,603.16,0.589]
[1742161716116,0.33119162,603.88,603.16,0.589]
[1742161716326,0.27467669,603.87,603.16,0.589]
[1742161721922,0.27467558,603.86,603.16,0.589]
[1742161722228,0.27467558,603.87,603.16,0.589]
[1742161722426,0.27467558,603.86,603.16,0.589]
[1742161722726,0.27467558,603.85,603.16,0.589]
[1742161722920,0.27467558,603.87,603.16,0.589]
[1742161723125,0.27467558,603.86,603.16,0.589]
[1742161723323,0.27467558,603.87,603.16,0.589]
[1742161723731,0.27468024,603.86,603.16,0.589]
[1742161723926,0.27468024,603.87,603.16,0.589]
[1742161724227,0.27468024,603.86,603.16,0.589]
[1742161724432,0.27468024,603.85,603.16,0.589]
[1742161724624,0.27468024,603.87,603.16,0.589]
[1742161724828,0.27468024,603.86,603.16,0.589]
[1742161725029,0.27468024,603.87,603.16,0.589]
[1742161725328,0.27468024,603.86,603.16,0.589]
[1742161725528,0.27468024,603.85,603.16,0.589]
[1742161725730,0.27468024,603.84,603.16,0.589]
[1742161726030,0.27468024,603.83,603.16,0.589]
[1742161726229,0.27468024,603.82,603.16,0.589]
[1742161726526,0.27468024,603.81,603.16,0.589]
[1742161726723,0.27468024,603.8,603.16,0.589]
[1742161726933,0.27468024,603.79,603.16,0.589]
[1742161727134,0.27468024,603.87,603.16,0.589]
[1742161727324,0.27468024,603.86,603.16,0.589]
[1742161727623,0.27468024,603.85,603.16,0.589]
[1742161727933,0.27468024,603.84,603.16,0.589]
[1742161728126,0.27468024,603.87,603.16,0.589]
[1742161728332,0.27468024,603.86,603.16,0.589]
[1742161728530,0.27468024,603.87,603.16,0.589]
[1742161728726,0.33119162,603.88,603.16,0.589]
[1742161728727,0.27468024,603.86,603.16,0.589]
[1742161728928,0.27468024,603.87,603.16,0.589]
[1742161729123,0.27468024,603.86,603.16,0.589]
[1742161729324,0.33119162,603.88,603.16,0.589]
[1742161729325,0.27468024,603.85,603.16,0.589]
[1742161729530,0.27468024,603.87,603.16,0.589]
[1742161729732,0.27468024,603.86,603.16,0.589]
[1742161730027,0.27468024,603.85,603.16,0.589]
[1742161730432,0.27468024,603.84,603.16,0.589]
[1742161730629,0.27468024,603.87,603.16,0.589]
[1742161730830,0.27468024,603.86,603.16,0.589]
[1742161731233,0.27468024,603.85,603.16,0.589]
[1742161731535,0.27468024,603.84,603.16,0.589]
[1742161731734,0.27468024,603.83,603.16,0.589]
[1742161731932,0.27468024,603.82,603.16,0.589]
[1742161732234,0.27468024,603.87,603.16,0.589]
[1742161732434,0.27468024,603.81,603.16,0.589]
[1742161732635,0.27468024,603.86,603.16,0.589]
[1742161732838,0.27468024,603.85,603.16,0.589]
[1742161733137,0.27468024,603.84,603.16,0.589]
[1742161733343,0.27468024,603.83,603.16,0.589]
[1742161733531,0.27468024,603.82,603.16,0.589]
[1742161733730,0.27468024,603.81,603.16,0.589]
[1742161733935,0.27468024,603.8,603.16,0.589]
[1742161734135,0.27468024,603.87,603.16,0.589]
[1742161734336,0.33119162,603.88,603.16,0.589]
[1742161734337,0.27468024,603.86,603.16,0.589]
[1742161734540,0.27468024,603.87,603.16,0.589]
[1742161734743,0.60588283,603.86,603.16,0.589]
[1742161734941,0.27468024,603.85,603.16,0.589]
[1742161736537,0.27471161,603.84,603.16,0.589]
[1742161736743,0.27471161,603.85,603.16,0.589]
[1742161736945,0.27471161,603.84,603.16,0.589]
[1742161737138,0.33120259,603.86,603.16,0.589]
[1742161737139,0.27471161,603.85,603.16,0.589]
[1742161738149,0.33120259,603.86,603.16,0.589]
[1742161738344,0.27475407,603.85,603.16,0.589]
[1742161739448,0.33120259,603.86,603.16,0.589]
[1742161739648,0.27475473,603.85,603.16,0.589]
[1742161740250,0.33120259,603.86,603.16,0.589]
[1742161740451,0.27475497,603.85,603.16,0.589]
[1742161741553,0.33120259,603.86,603.16,0.589]
[1742161741848,0.27476452,603.85,603.16,0.589]
[1742161743356,0.33120259,603.86,603.16,0.589]
[1742161743556,0.27475899,603.85,603.16,0.589]
[1742161747555,0.27475899,603.84,603.16,0.589]
[1742161747854,0.27475899,603.83,603.16,0.589]
[1742161748061,0.60598352,603.82,603.16,0.589]
[1742161748352,0.27475899,603.81,603.16,0.589]
[1742161748554,0.60599449,603.8,603.16,0.589]
[1742161748755,0.60599998,603.79,603.16,0.589]
[1742161748954,0.27475899,603.78,603.16,0.589]
[1742161749152,0.33125196,603.77,603.16,0.589]
[1742161749355,0.27475899,603.76,602.41,0.2885297]
[1742161749556,0.33126293,603.75,602.41,0.2885297]
[1742161749851,0.27475899,603.74,602.41,0.2885297]
[1742161750452,0.33127391,603.73,602.41,0.2885297]
[1742161750853,0.27475899,603.72,602.41,0.2885297]
[1742161751357,0.33128488,603.71,602.41,0.2885297]
[1742161751554,0.27475899,603.7,602.41,0.2885297]
[1742161752458,0.33129586,603.69,602.41,0.2885297]
[1742161752654,0.27475899,603.68,602.41,0.2885297]
[1742161753057,0.33129586,603.69,602.41,0.2885297]
[1742161753258,0.27478598,603.68,602.41,0.2885297]
[1742161753460,0.27478598,603.68,602.41,1.0155297]
[1742161754259,0.27478111,603.67,602.41,1.0155297]
[1742161754561,0.27478111,603.66,602.41,1.0155297]
[1742161754758,0.27478111,603.65,602.41,1.0155297]
[1742161754958,0.27478111,603.64,602.41,1.0155297]
[1742161755155,0.27478111,603.63,602.41,1.0155297]
[1742161755359,0.27478111,603.68,602.41,1.0155297]
[1742161755553,0.27478111,603.67,602.41,1.0155297]
[1742161755754,0.27478111,603.66,602.41,1.0155297]
[1742161756055,0.33129586,603.69,602.41,1.0155297]
[1742161756056,0.27478095,603.65,602.41,1.0155297]
[1742161756361,0.27478095,603.68,602.41,1.0155297]
[1742161756560,0.27478095,603.68,602.41,0.727]
[1742161757159,0.27478095,603.68,602.41,1.01563979]
[1742161759662,0.27478095,603.68,602.41,0.727]
[1742161759863,0.27478095,603.68,602.41,1.01563979]
[1742161760958,0.27478095,603.68,602.42,0.30479948]
[1742161761358,0.27478095,603.68,602.41,1.01563979]
[1742161761965,0.33129586,603.69,602.41,1.01563979]
[1742161762666,0.27477968,603.68,602.41,1.01563979]
[1742161763461,0.33129586,603.69,602.41,1.01563979]
[1742161763661,0.27480972,603.68,602.41,1.01563979]
[1742161765673,0.27480972,603.68,602.41,0.727]
[1742161765871,0.27480972,603.68,602.41,1.01563979]
[1742161767171,0.27480261,603.67,602.41,1.01563979]
[1742161767368,0.27480261,603.67,602.41,0.727]
[1742161767574,0.33131232,603.66,602.41,0.727]
[1742161767869,0.27480261,603.65,602.41,0.727]
[1742161768070,0.3313233,603.64,602.41,0.727]
[1742161768269,0.27480261,603.63,602.41,0.727]
[1742161768570,0.33133428,603.62,602.41,0.727]